Cogmind - Beta 10.2 @@@ ROGUE MODE // 2021.08.03 @ 20:50:48 Player: Sanctumkeeper Result: Self-destructed Performance ------------- Evolutions (2) 1000 Regions Visited (5) 1000 Robots Destroyed (22) 110 Value Destroyed (355) 355 Prototype IDs (23) 460 Alien Tech Used (0) 0 Bonus (66) 66 TOTAL SCORE: 2991 Bonus ------- Follower Combat Kills 66 Cogmind --------- Core Integrity 135/550 Matter 253/300 Energy 75/100 System Corruption 0% Temperature Cool (18) Movement Core (1100) Ox21 Location -8/Materials Parts ------- > --- POWER (1) -------- (None) > --- PROPULSION (3) --- (None) > --- UTILITY (5) ------ Medium Storage Unit Medium Storage Unit High-capacity Storage Unit > --- WEAPON (2) ------- YOLO Cannon > --- INVENTORY (20) --- Advanced Sensor Array Experimental Sensor Array Improved Terrain Scanner Makeshift Cloaking Device Utility Shielding Makeshift Hacking Suite Rocket Launcher Hammer Peak State ------------ > --- POWER ------------ (None) > --- PROPULSION ------- (None) > --- UTILITY ---------- Medium Storage Unit Medium Storage Unit High-capacity Storage Unit > --- WEAPON ----------- YOLO Cannon > --- INVENTORY -------- Advanced Sensor Array Experimental Sensor Array Improved Terrain Scanner Makeshift Cloaking Device Utility Shielding Makeshift Hacking Suite Rocket Launcher Hammer [Rating: 25] Favorites ----------- Power Light Ion Engine Engine Light Ion Engine Propulsion Light Treads Treads Light Treads Wheel Compact Wheel Utility High-capacity Storage Unit Storage High-capacity Storage Unit Weapon Light Assault Rifle Energy Gun Makeshift Laser Energy Cannon YOLO Cannon Ballistic Gun Light Assault Rifle Build | -11 -10 -10 -10 -9 -8 ------- Run | Scr Mat Min Exi Min Mat Slots Evolved 4 | . . . . . 4 Power . | . . . . . . Propulsion 1 | . . . . . 1 Utility 3 | . . . . . 3 Weapon . | . . . . . . Parts Attached 24 | 6 1 . 3 4 10 Power 3 | 1 . . . 1 1 Engine 3 | 1 . . . 1 1 Core . | . . . . . . Reactor . | . . . . . . Propulsion 5 | 2 . . . 1 2 Treads 4 | 1 . . . 1 2 Leg . | . . . . . . Wheel 1 | 1 . . . . . Hover . | . . . . . . Flight . | . . . . . . Utility 4 | 1 1 . 1 . 1 Device . | . . . . . . Storage 4 | 1 1 . 1 . 1 Processor . | . . . . . . Hackware . | . . . . . . Protection . | . . . . . . Artifact . | . . . . . . Weapon 12 | 2 . . 2 2 6 Energy Gun 1 | . . . 1 . . Energy Cannon 1 | . . . . . 1 Ballistic Gun 10 | 2 . . 1 2 5 Ballistic Cannon . | . . . . . . Launcher . | . . . . . . Special Weapon . | . . . . . . Impact Weapon . | . . . . . . Slashing Weapon . | . . . . . . Piercing Weapon . | . . . . . . Special Melee Weapon . | . . . . . . Unidentified Prototypes . | . . . . . . Parts Lost 16 | . . . . 3 13 Power 2 | . . . . . 2 Propulsion 5 | . . . . 1 4 Utility . | . . . . . . Weapon 9 | . . . . 2 7 Highest Loss Streak 13 | . . . . 3 13 Average Slot Usage (%) 95 | . 93 100 100 99 73 Engine 13 | . 14 14 14 14 7 Treads 14 | . 14 14 14 14 15 Wheel 13 | . 14 14 14 14 6 Storage 26 | . 21 28 28 28 27 Ballistic Gun 26 | . 28 28 28 27 16 Naked Turns . | . . . . . . Heaviest Build 57 | 10 42 42 46 46 57 Greatest Support 23 | 16 16 20 16 16 23 Greatest Overweight (x) 3 | . 2 2 2 2 3 Average Overweight (x) 1 | . . 2 2 2 2 Largest Inventory Capacity 20 | 6 14 14 16 16 20 Average Capacity 14 | 4 10 14 14 16 19 Most Carried 18 | 4 8 14 15 16 18 Average Carried 11 | 2 5 10 13 14 14 Final Capacity 20 | 6 14 14 16 16 20 Final Carried 15 | 4 8 14 15 15 8 Class Distribution -------------------- 88% | Mutant 11% | Hauler-Mutant Dominant Class ---------------- Mutant | -10/Materials Mutant | -10/Mines Mutant | -10/Exiles Mutant | -9/Mines Hauler-Mutant | -8/Materials Resources | -11 -10 -10 -10 -9 -8 ----------- Run | Scr Mat Min Exi Min Mat Matter Collected 569 | 228 51 108 . 105 77 Remotely . | . . . . . . Salvage Created 479 | . 51 183 . 60 185 Parts 33 | . . 15 . 2 16 Haulers Intercepted 1 | . 1 . . . . Recyclers Shooed 2 | . . 1 . . 1 Parts Field Recycled . | . . . . . . Retrieved Matter . | . . . . . . Parts Self-Destructed . | . . . . . . Prevented . | . . . . . . Kills | -11 -10 -10 -10 -9 -8 ------- Run | Scr Mat Min Exi Min Mat Combat Hostiles Destroyed 18 | . . 8 . 4 6 Guns 17 | . . 8 . 4 5 AOE 1 | . . . . . 1 Classes Destroyed 5 | . 1 2 . . 2 Worker 3 | . . . . . 3 Hauler 1 | . 1 . . . . Swarmer 13 | . . 6 . 4 3 Grunt 4 | . . 2 . . 2 Sentry 1 | . . . . . 1 Best Kill Streak 4 | . 1 3 . 4 4 Combat Bots Only 4 | . . 3 . 4 3 Max Kills in Single Turn 2 | . 1 1 . 1 2 Gunslinging . | . . . . . . Exploded 1 | . . . . . 1 Melee . | . . . . . . Uniques/NPCs Destroyed . | . . . . . . Combat | -11 -10 -10 -10 -9 -8 -------- Run | Scr Mat Min Exi Min Mat Damage Taken 2539 | . . 224 . 337 1978 Core 519 | . . 9 . 95 415 Absorbed by Shields . | . . . . . . Core Remaining (%) 79 | 100 . . . 58 . Volleys Fired 81 | . 8 23 . 16 34 Largest 2 | . 2 2 . 2 2 Hottest 100 | . 40 40 . 40 100 Shots Fired 157 | . 16 46 . 32 63 Gun 155 | . 16 46 . 32 61 Cannon 2 | . . . . . 2 Launcher . | . . . . . . Special . | . . . . . . Kinetic 155 | . 16 46 . 32 61 Thermal 2 | . . . . . 2 Explosive . | . . . . . . Electromagnetic . | . . . . . . Robot Hit Streak 12 | . 7 8 . 12 11 Robot Miss Streak 5 | . 2 3 . 5 5 Penetration Max . | . . . . . . Secondary Targets 3 | . . 1 . 2 . Max Gunslinging Chain 1 | . . 1 . 1 . Shots Hit Robots 97 | . 11 29 . 22 35 Core Hits 46 | . 3 14 . 8 21 Critical Hits 1 | . . 1 . . . Critical Kills 1 | . . 1 . . . Critical Parts Destroyed . | . . . . . . Melee Attacks . | . . . . . . Impact . | . . . . . . Slashing . | . . . . . . Piercing . | . . . . . . Sneak Attacks . | . . . . . . Combat Hostiles . | . . . . . . Follow-up Attacks . | . . . . . . Damage Inflicted 1810 | . 135 343 . 231 1101 Guns 1013 | . 135 333 . 231 314 Cannons 226 | . . . . . 226 Explosions 549 | . . . . . 549 Melee . | . . . . . . Ramming 22 | . . 10 . . 12 Kinetic 1013 | . 135 333 . 231 314 Thermal 775 | . . . . . 775 Explosive . | . . . . . . Electromagnetic . | . . . . . . Impact . | . . . . . . Slashing . | . . . . . . Piercing . | . . . . . . Highest Corruption . | . . . . . . Average Corruption . | . . . . . . Corruption Purged . | . . . . . . Overload Shots . | . . . . . . Overflow Damage 102 | . . . . . 102 Projectiles 86 | . . . . . 86 Explosions 16 | . . . . . 16 Melee . | . . . . . . Knockbacks 1 | . . 1 . . . Impact 1 | . . 1 . . . Kinetic . | . . . . . . Secondary . | . . . . . . Self-Inflicted Damage 123 | . . . . . 123 Shots 2 | . . . . . 2 Rammed 5 | . . 1 . 1 3 Targets Rammed 5 | . . 1 . 1 3 Kicked . | . . . . . . Crushed . | . . . . . . Highest Temperature 47 | . . 15 . 9 47 Average Temperature 14 | . . 8 . 9 16 Received Heat Transfer 1083 | . . 84 . 18 981 Siege Activations . | . . . . . . Robots Corrupted . | . . . . . . Combat Hostiles . | . . . . . . Parts Fried . | . . . . . . Impact Corruptions . | . . . . . . Robots Melted . | . . . . . . Combat Hostiles . | . . . . . . Parts Melted 1 | . . . . . 1 Heat Transferred 720 | . . . . . 720 Parts Sabotaged . | . . . . . . Parts Stolen . | . . . . . . Parts Stripped . | . . . . . . Power Chain Reactions . | . . . . . . Missiles Intercepted . | . . . . . . Alert | -11 -10 -10 -10 -9 -8 ------- Run | Scr Mat Min Exi Min Mat Peak Influence 165 | . 13 165 . 63 110 Initial 4 | . . 4 . . . Average 43 | . 8 71 . 23 71 Maximum Alert Level . | . . . . . . Low Security (%) 100 | 100 100 100 . 100 100 Level 1 . | . . . . . . Level 2 . | . . . . . . Level 3 . | . . . . . . Level 4 . | . . . . . . Level 5 . | . . . . . . High Security . | . . . . . . Max Security . | . . . . . . Squads Dispatched . | . . . . . . Investigation . | . . . . . . Extermination . | . . . . . . Reinforcement . | . . . . . . Assault . | . . . . . . Garrison . | . . . . . . Intercept . | . . . . . . Construction Impeded . | . . . . . . Haulers Reinforced . | . . . . . . Stealth | -11 -10 -10 -10 -9 -8 --------- Run | Scr Mat Min Exi Min Mat Distress Signals 1 | . . . . . 1 Communications Jammed . | . . . . . . Distress Signals . | . . . . . . Times Spotted 33 | . 1 10 . 9 13 Peak Tracking Total 7 | . 1 3 . 4 7 Tactical Retreats 6 | . . 1 . 3 2 Traps | -11 -10 -10 -10 -9 -8 ------- Run | Scr Mat Min Exi Min Mat Traps Triggered . | . . . . . . Indirectly . | . . . . . . Trap Hack Attempts . | . . . . . . Triggered . | . . . . . . Disarmed . | . . . . . . Reprogrammed . | . . . . . . Reused . | . . . . . . Traps Extracted . | . . . . . . Installed . | . . . . . . Triggered . | . . . . . . Machines | -11 -10 -10 -10 -9 -8 ---------- Run | Scr Mat Min Exi Min Mat Machines Disabled . | . . . . . . Max in Single Turn . | . . . . . . Machines Sabotaged . | . . . . . . Garrisons Compromised . | . . . . . . Overloaded Fab Kills . | . . . . . . Fab Network Shutdowns . | . . . . . . Hacking | -11 -10 -10 -10 -9 -8 --------- Run | Scr Mat Min Exi Min Mat Machines Accessed 8 | . 2 . 3 1 2 Terminals 5 | . 2 . . 1 2 Fabricators . | . . . . . . Repair Stations . | . . . . . . Recycling Units . | . . . . . . Scanalyzers . | . . . . . . Garrison Access . | . . . . . . Total Hacks 21 | . 12 . 3 1 5 Successful 12 | . 5 . 3 1 3 Failed 9 | . 7 . . . 2 Catastrophic . | . . . . . . Database Lockouts . | . . . . . . Manual 18 | . 12 . 1 1 4 Terminals 18 | . 12 . . 1 5 Fabricators . | . . . . . . Repair Stations . | . . . . . . Recycling Units . | . . . . . . Scanalyzers . | . . . . . . Garrison Access . | . . . . . . Terminal Hacks 7 | . 2 . 3 . 2 Record 2 | . . . 2 . . Robot Analysis 3 | . 2 . . . 1 Zone Layout 1 | . . . . . 1 EX-Prototype ID Bank 1 | . . . 1 . . Fabricator Hacks . | . . . . . . Repair Station Hacks . | . . . . . . Recycling Unit Hacks . | . . . . . . Scanalyzer . | . . . . . . Garrison Access Hacks . | . . . . . . Unauthorized Hacks 5 | . 3 . . 1 1 Terminals 5 | . 3 . . 1 1 Track 2 | . 1 . . 1 . Botnet 3 | . 2 . . . 1 Fabricators . | . . . . . . Repair Stations . | . . . . . . Recycling Units . | . . . . . . Scanalyzers . | . . . . . . Garrison Access . | . . . . . . Data Cores Recovered . | . . . . . . Used . | . . . . . . Hacking Detections 3 | . 2 . . . 1 Full Trace Events . | . . . . . . Feedback Events . | . . . . . . Feedback Blocked . | . . . . . . Robot Schematics Acquired . | . . . . . . Robots Built . | . . . . . . Matter . | . . . . . . Time . | . . . . . . Total Robot Build Rating . | . . . . . . Part Schematics Acquired . | . . . . . . Parts Built . | . . . . . . Matter . | . . . . . . Time . | . . . . . . Total Part Build Rating . | . . . . . . Parts Repaired . | . . . . . . Time . | . . . . . . Parts Recycled . | . . . . . . Recycled Matter . | . . . . . . Retrieved Matter . | . . . . . . Retrieved Components . | . . . . . . Parts Scanalyzed . | . . . . . . Part Schematics Acquired . | . . . . . . Parts Damaged . | . . . . . . Bothacking | -11 -10 -10 -10 -9 -8 ------------ Run | Scr Mat Min Exi Min Mat Used RIF Installer . | . . . . . . Robots Hacked . | . . . . . . Non-combat . | . . . . . . Combat . | . . . . . . Robot Hacks Applied . | . . . . . . Relay Couplers Released . | . . . . . . Robots Rewired 3 | . . . 3 . . Allies Hacked . | . . . . . . Hacks Repelled . | . . . . . . Allies | -11 -10 -10 -10 -9 -8 -------- Run | Scr Mat Min Exi Min Mat Total Allies 3 | . . . 3 . . Largest Group 3 | . . . 3 3 . Highest-Rated Group 50 | . . . 50 50 . Highest-Rated Ally 21 | . . . 21 21 . Total Orders . | . . . . . . Ally Attacks 19 | . . . . 19 . Total Damage 515 | . . . . 515 . Kills 7 | . . . . 7 . Allies Corrupted . | . . . . . . Allies Melted . | . . . . . . Intel | -11 -10 -10 -10 -9 -8 ------- Run | Scr Mat Min Exi Min Mat Robot Analysis Total 3 | . 2 . . . 1 Derelict Logs Recovered 4 | . . 2 . 2 . Drone Launches . | . . . . . . Drone Recoveries . | . . . . . . Exploration | -11 -10 -10 -10 -9 -8 ------------- Run | Scr Mat Min Exi Min Mat Turns Passed 2644 | 52 383 638 774 496 301 Spaces Moved 1923 | 40 324 467 605 364 123 Core 1 | 1 . . . . . Treads 9 | . . 3 . . 6 Legs . | . . . . . . Wheels 1913 | 39 324 464 605 364 117 Hover . | . . . . . . Flight . | . . . . . . Fastest Speed 50 | 50 100 120 120 120 130 Average Speed 118 | 98 109 120 120 120 133 Slowest Speed 200 | 100 120 200 120 120 200 Overloaded Moves . | . . . . . . Propulsion Burnouts . | . . . . . . Robots Hopped . | . . . . . . Cave-ins Triggered . | . . . . . . Exploration Rate (%) 53 | 3 39 92 91 80 14 Regions Visited 5 Branch Regions 3 Pre-discovered Areas 2 | . . 1 1 . . Known Exits Taken . | . . . . . . Unknown Exits Taken 5 | 1 1 1 1 1 . Scrap Searched 2 | . . 1 . 1 . Spaces Dug . | . . . . . . Terrain Destroyed 22 | . . . . . 22 Melee . | . . . . . . Projectile . | . . . . . . AOE 22 | . . . . . 22 Terrain Rammed . | . . . . . . Walls Destroyed . | . . . . . . Machines Disabled . | . . . . . . Actions | -11 -10 -10 -10 -9 -8 --------- Run | Scr Mat Min Exi Min Mat Total 2132 | 50 336 500 656 397 193 Wait 26 | . . 2 4 3 17 Move 1918 | 39 323 466 604 363 123 Hop . | . . . . . . Pick Up 31 | 5 4 7 4 6 5 Fast Attach 7 | 5 1 . 1 . . Attach 15 | 1 . . 1 3 10 Detach 1 | . . . 1 . . Swap 2 | . . . 1 1 . Drop 12 | . . 1 6 4 1 Fire 81 | . 8 23 . 16 34 Melee . | . . . . . . Ram 2 | . . . . . 2 Kick . | . . . . . . Crush 3 | . . 1 . 1 1 Escape Stasis . | . . . . . . Rewire 34 | . . . 34 . . Trap . | . . . . . . Miscellaneous . | . . . . . . Route ------- -11/Scrapyard -10/Materials (discovered 2 exits: [*Mat] / [*Min]) -10/Mines (discovered 3 exits: [*Mat x2] / *Exi) -10/Exiles (discovered 2 exits: *Min x2) -9/Mines -8/Materials (discovered 1 exit: Sto) History --------- Turn | Location | Event 22 | -11/Scrapyard | Discovered new exit (range 15) 53 | -11/Scrapyard | Entered Materials 62 | -10/Materials | Discovered new exit (range 16) 142 | -10/Materials | Discovered new exit (range 3) 317 | -10/Materials | Build established: Mutant 436 | -10/Materials | Entered Mines 437 | -10/Mines | Learned location of Storage (-8) 538 | -10/Mines | Deemed a non-threat by the Exiles lab entrance 591 | -10/Mines | Learned Materials stockpile data 706 | -10/Mines | Discovered new exit (range 12) 835 | -10/Mines | Discovered new exit (range 13) 910 | -10/Mines | Received a Rocket Launcher from a helpful Derelict 1069 | -10/Mines | Discovered new exit (range 5) 1074 | -10/Mines | Entered Exiles 1074 | -10/Exiles | Found Exiles lab destroyed 1094 | -10/Exiles | Discovered new exit (range 15) 1200 | -10/Exiles | Opened EX-Vault 1209 | -10/Exiles | Found YOLO Cannon 1273 | -10/Exiles | Learned location of Zion (-7) 1830 | -10/Exiles | Discovered new exit (range 14) 1848 | -10/Exiles | Entered Mines 1848 | -9/Mines | Accompanied by 3 allies 1875 | -9/Mines | Found a damaged Exp. Sensor Array with a note attached 1878 | -9/Mines | Found Prototype Device 1953 | -9/Mines | Learned 4 Materials zone layouts 1955 | -9/Mines | A weapon hastily lodged in a ceiling crevice suddenly fell to the ground 2017 | -9/Mines | Assembled infested the area 2022 | -9/Mines | Assisted by a Guerilla fighting off Assembled 2118 | -9/Mines | Lost 3 parts (1n2w) 2223 | -9/Mines | Learned Materials trap positions 2315 | -9/Mines | Discovered new exit (range 10) 2344 | -9/Mines | Entered Materials 2344 | -8/Materials | Evolved 4 slots: Propulsion x1, Utility x3 2345 | -8/Materials | Identified exit to Storage 2347 | -8/Materials | Loaded intel: 10 trap records 2620 | -8/Materials | Core integrity fell below 50% 2639 | -8/Materials | Build established: Hauler-Mutant 2645 | -8/Materials | Self-destructed Last Messages --------------- 02619_ Destroyed Particle Gun. 02619_ K-01 Serf destroyed. 02625_ K-01 Serf collects debris. 02630_ Destroyed Aluminum Leg. 02630_ Lgt. Nuclear Core melted. 02630_ G-47 Trooper destroyed. 02630_ Destroyed Particle Gun. 02630_ K-01 Serf destroyed. 02630_ R-06 Scavenger collects Wheel. 02634_ Slammed into G-47 Trooper. 02634_ R-06 Scavenger collects Lgt. Treads. 02634_ U-05 Engineer lays Concrete. 02637_ U-05 Engineer builds a Wall. 02637_ U-05 Engineer lays Concrete. 02639_ K-01 Serf collects debris. 02640_ U-05 Engineer lays Concrete. 02643_ K-01 Serf collects debris. 02643_ U-05 Engineer lays Concrete. 02643_ U-05 Engineer builds a Wall. 02645_ U-05 Engineer lays Concrete. Map ----- +----------------------------------------------------+ | ???????? ## #??????????????#????????????????? | | ???????? ## #??????????????#????????????????? | | ???????? ## #??????????????#????????????????? | | ???????? ## #??????????????#????????????????? | | ???????? ## #??????????????#????????????????? | | ????=??? ## #??????????????#????????????????? | | ???????? ## #?????????????? ????????????????? | | ???????? ## #??????????????#????????????????? | | ???????? ## #??????????????#????????????????? | | ???????? ## #??????????????#????????????????? | | ???????? ###+###### ########## ????????????????? | | ???????? ????????????????? | | ????????T ????????????????? | | ???????? ????????????????? | | ???????? ###+############# # ????????????????? | | ????????#### #??????# ##????????????????? | | ???????????# #??????# # ????????????????? | | ???????????# #??????# =# ????????????????? | | ???????????# """ #??????# !%# ?"" "???????????? | | ???????????# """ #??????# !# """ ""??????????? | | ???????????# """ #??????# r# ???????????? | | ???????????# """ #????##; k; ?????????????? | | ???????????# #???## ; ##############????? | | ???????????# #??## = u ???? | | ?????????????????#######;g [%[ | | ?????????? g @ ! [= | | ?????????????????########; u [=;#########+##### | | ????????????????????????# %!####### ### | | ????????????????????????#### # # """ # | | ???????????????????????????# # T # """ # | | ???????????????????????????# # # """ # | | ???????????????????????????# # """ # # | | ??????????????????########## # """ # # | | ??????????????????? # # """ # # | | ??????????????????? """" # # # [ # | | ??????????????????? """" # # """ # # | | ??????????????????? """" + + """ ########## | | ??????????????????# # # """ ## #### | | ??????????????????# """ # # ## #### | | ??????????????????# """ # ######### + | | ??????????????????? """ # # ! ## """ #### | | ??????????????????? # # ## """ #??# | | ??????????????????########## # """ ## """ #??# | | ?^?????????????????????????# + """ #########??# | | ??^????????????????######??# # """ #??????????# | | ??????????????????? #??# # #??????????# | | ^?^???????????????? #??# #####+##??????????# | | ??^???????????????? #??# ############ | | ??????????????????? #??# | | ??????????????????? #??# ##+######### | +----------------------------------------------------+ Best States ------------- Heat Dissipation 31 Energy Generation 10 Energy Capacity 125 Matter Stores 300 Matter Capacity 300 Sight Range 16 Terrain Scan Density 10 Evasion (%) 40 Recoil Reduction 3 Item Schematics ----------------- None Robot Schematics ------------------ None Fabricated ------------ Nothing Alien Tech Used ----------------- None Achievements -------------- None Challenges ------------ None Game ------ Seed AngularLightMapper Manual? 0 Play Time 00:17:05 Cumulative 177.4 hours Start 2021.08.03 @ 20:36:44 End 2021.08.03 @ 20:50:48 Sessions 1 Manual Loads 0 Difficulty Rogue Special Mode None Game No. 133 Rogue 133 Adventurer 0 Explorer 0 Win Type - Total 6 Types 5/0/0/0/0/0/0/1/0 Lore% 81 Gallery% 70 Achievement% 58 Wizard Run 0 Options --------- ASCII 0 Keyboard 1 Movement Arrows Keybinds 0 Fullscreen 1 Font 18/SmallcapsGlow Map View 76x50 Tactical HUD 1 Map Filters NONE Filters NONE Steam 1 RUN: fe6275eb-a272-4a42-be32-82400ad893f5